fUST/lending_fUST_20250421
["ID","MTS","AMOUNT","RATE_DAILY","PERIOD"]
[358533900,1745238644239,-500.0,0.00023846,2]
[358533901,1745238644250,-393.01,0.00023846,2]
[358533902,1745238644260,-605.47,0.00023846,2]
[358533903,1745238644270,-436.94,0.00023846,2]
[358533904,1745238644279,-500.0,0.00023846,2]
[358533905,1745238644289,-500.0,0.00023846,2]
[358533906,1745238644299,-500.0,0.00023846,2]
[358533907,1745238644308,-563.24,0.00023847,2]
[358533908,1745238644318,-352.0,0.00023848,2]
[358533909,1745238644327,-500.0,0.00023848,2]
[358533910,1745238644337,-761.77050355,0.000239,5]
[358533911,1745238644347,-420.0,0.00023918,2]
[358533912,1745238644356,-420.0,0.00024031,2]
[358533913,1745238644366,-500.0,0.00024118,2]
[358533914,1745238644376,-500.0,0.00024118,2]
[358533915,1745238644386,-678.87,0.00024118,2]
[358533916,1745238644396,-2062.41,0.00024118,2]
[358533917,1745238644406,-517.67,0.00024118,2]
[358533918,1745238644416,-500.0,0.00024119,2]
[358533919,1745238644426,-297.53,0.00024119,2]
[358533920,1745238644435,-500.0,0.00024119,2]
[358533921,1745238644444,-500.0,0.00024119,2]
[358533922,1745238644454,-500.0,0.00024119,2]
[358533923,1745238644463,-500.0,0.00024119,2]
[358533924,1745238644473,-833.33,0.00024119,2]
[358533925,1745238644482,-500.0,0.00024119,2]
[358533926,1745238644491,-199.67,0.00024119,2]
[358533927,1745238644501,-500.0,0.00024119,2]
[358533928,1745238644511,-500.0,0.00024119,2]
[358533929,1745238644521,-500.0,0.00024119,2]
[358533930,1745238644531,-426.47,0.0002412,2]
[358533931,1745238644542,-500.0,0.0002412,2]
[358533932,1745238644557,-224.63,0.0002412,2]
[358533933,1745238644567,-603.32,0.0002412,2]
[358533934,1745238644577,-435.44,0.0002412,2]
[358533935,1745238644594,-297.32,0.0002412,2]
[358533936,1745238644608,-1413.15,0.0002412,2]
[358533937,1745238644619,-500.0,0.0002412,2]
[358533938,1745238644631,-224.57,0.0002412,2]
[358533939,1745238644642,-500.0,0.0002412,2]
[358533940,1745238644652,-500.0,0.0002412,2]
[358533941,1745238644662,-563.24,0.00024121,2]
[358533942,1745238644672,-500.0,0.00024122,2]
[358533943,1745238644682,-184.71652883,0.00024293,2]
[358533944,1745238644691,-350.58,0.00024392,2]
[358533945,1745238644702,-500.0,0.00024392,2]
[358533946,1745238644711,-678.87,0.00024392,2]
[358533947,1745238644722,-2062.41,0.00024392,2]
[358533948,1745238644732,-517.67,0.00024392,2]
[358533949,1745238644741,-500.0,0.00024393,2]
[358533950,1745238644751,-500.0,0.00024393,2]
[358533951,1745238644761,-500.0,0.00024393,2]
[358533952,1745238644771,-237.66,0.00024393,2]
[358533953,1745238644781,-500.0,0.00024393,2]
[358533954,1745238644791,-500.0,0.00024393,2]
[358533955,1745238644802,-500.0,0.00024393,2]
[358533956,1745238644812,-365.76,0.00024393,2]
[358533957,1745238644822,-500.0,0.00024393,2]
[358533958,1745238644832,-192.61438165,0.00024394,2]
[358533959,1745238644841,-1413.15,0.00024394,2]
[358533960,1745238644850,-500.0,0.00024394,2]
[358533961,1745238644860,-500.0,0.00024394,2]
[358533962,1745238644870,-500.0,0.00024394,2]
[358533963,1745238644880,-563.24,0.00024395,2]
[358533964,1745238644890,-500.0,0.00024396,2]
[358533965,1745238644900,-600.0,0.00024416,2]
[358533966,1745238644909,-200.0,0.00024658,15]
[358533967,1745238644919,-151.54547632,0.00024658,2]
[358533968,1745238644929,-409.62594121,0.00024658,2]
[358533969,1745238644939,-761.77050338,0.00024659,5]
[358533970,1745238644949,-500.0,0.00024666,2]
[358533971,1745238644959,-678.87,0.00024666,2]
[358533972,1745238644970,-2062.41,0.00024666,2]
[358533973,1745238644980,-517.67,0.00024666,2]
[358533974,1745238644990,-210.49,0.00024667,2]
[358533975,1745238644999,-500.0,0.00024667,2]
[358533976,1745238645009,-500.0,0.00024667,2]
[358533977,1745238645019,-500.0,0.00024667,2]
[358533978,1745238645028,-500.0,0.00024667,2]
[358533979,1745238645039,-500.0,0.00024667,2]
[358533980,1745238645049,-500.0,0.00024667,2]
[358533981,1745238645059,-1413.15,0.00024668,2]
[358533982,1745238645068,-368.47,0.00024668,2]
[358533983,1745238645078,-500.0,0.00024668,2]
[358533984,1745238645088,-500.0,0.00024668,2]
[358533985,1745238645098,-563.24,0.00024669,2]
[358533986,1745238645108,-500.0,0.0002467,2]
[358533987,1745238645118,-8844.06632454,0.000248,2]
[358533988,1745238645128,-562.38883884,0.00024818,2]
[358533989,1745238645138,-184.71652883,0.00024841,2]
[358533990,1745238645148,-520.55206321,0.00024873,2]
[358533991,1745238645157,-500.0,0.00024873,2]
[358533992,1745238645167,-500.0,0.00024873,2]
[358533993,1745238645176,-500.0,0.00024873,2]
[358533994,1745238645186,-500.0,0.00024873,2]
[358533995,1745238645196,-500.0,0.00024873,2]
[358533996,1745238645206,-500.0,0.00024873,2]
[358533997,1745238645216,-500.0,0.00024873,2]
[358533998,1745238645229,-10809.4143967,0.0002489,2]
[358533999,1745238645239,-240977.41475,0.000249,2]
[358534000,1745238645249,-500.0,0.0002494,2]
[358534001,1745238645259,-678.87,0.0002494,2]
[358534002,1745238645269,-2062.41,0.0002494,2]
[358534003,1745238645280,-517.67,0.0002494,2]
[358534004,1745238645289,-500.0,0.00024941,2]
[358534005,1745238645300,-500.0,0.00024941,2]
[358534006,1745238645309,-833.33,0.00024941,2]
[358534007,1745238645319,-500.0,0.00024941,2]
[358534008,1745238645328,-223.64,0.00024941,2]
[358534009,1745238645339,-500.0,0.00024941,2]
[358534010,1745238645349,-500.0,0.00024941,2]
[358534011,1745238645359,-1413.15,0.00024942,2]
[358534012,1745238645369,-500.0,0.00024942,2]
[358534013,1745238645378,-500.0,0.00024942,2]
[358534014,1745238645388,-563.24,0.00024943,2]
[358534015,1745238645398,-385.76,0.00024944,2]
[358534016,1745238645408,-1290.0,0.00025,2]
[358534017,1745238645418,-784.0,0.00025,2]
[358534019,1745238645428,-577.21,0.00025,2]
[358534020,1745238645438,-1055.68993886,0.00025,2]
[358534021,1745238645448,-2600.31981139,0.00025,2]
[358534022,1745238645458,-206.31719049,0.00025,2]
[358534023,1745238645467,-10364.0,0.00025,2]
[358534024,1745238645477,-47396.79819522,0.00025,2]
[358534026,1745238645598,-29687.49027791,0.00025,2]
[358534027,1745238645610,-42915.71152587,0.00025,2]
[358534028,1745238645620,-500.0,0.00025214,2]
[358534029,1745238645631,-678.87,0.00025214,2]
[358534031,1745238645641,-2062.41,0.00025214,2]
[358534033,1745238645652,-517.67,0.00025214,2]
[358534034,1745238645662,-357.63,0.00025215,2]
[358534035,1745238645671,-500.0,0.00025215,2]
[358534036,1745238645680,-500.0,0.00025215,2]
[358534037,1745238645690,-500.0,0.00025215,2]
[358534038,1745238645700,-500.0,0.00025215,2]
[358534039,1745238645714,-1413.15,0.00025216,2]
[358534041,1745238645723,-500.0,0.00025216,2]
[358534042,1745238645733,-563.24,0.00025217,2]
[358534043,1745238645742,-160.0,0.000253,2]
[358534044,1745238645751,-160.0,0.000253,2]
[358534045,1745238645760,-420.65680271,0.00025307,2]
[358534046,1745238645769,-160.0,0.00025307,2]
[358534047,1745238645779,-833.33,0.00025414,2]
[358534048,1745238645788,-833.33,0.00025414,2]
[358534049,1745238645799,-833.33,0.00025414,2]
[358534050,1745238645808,-833.33,0.00025414,2]
[358534051,1745238645818,-833.33,0.00025414,2]
[358534052,1745238645827,-500.0,0.00025415,2]
[358534053,1745238645837,-500.0,0.00025415,2]
[358534054,1745238645846,-500.00000001,0.00025415,2]
[358534055,1745238645856,-500.0,0.00025415,2]
[358534056,1745238645866,-500.0,0.00025415,2]
[358534057,1745238645875,-500.0,0.00025415,2]
[358534058,1745238645884,-500.0,0.00025415,2]
[358534059,1745238645894,-500.0,0.00025415,2]
[358534060,1745238645903,-500.0,0.00025415,2]
[358534061,1745238645912,-488.90346044,0.00025415,2]
[358534062,1745238645924,-11.09653956,0.00025415,2]
[358534063,1745238645934,-500.0,0.00025415,2]
[358534064,1745238645943,-500.0,0.00025415,2]
[358534065,1745238645953,-500.0,0.00025415,2]
[358534066,1745238645963,-100.9215287,0.00025415,2]
[358534067,1745238645980,-399.0784713,0.00025415,2]
[358534068,1745238645990,-500.0,0.00025415,2]
[358534069,1745238645999,-500.0,0.00025415,2]
[358534070,1745238646009,-628.28111662,0.00025415,2]
[358534071,1745238646019,-500.0,0.00025415,2]
[358534072,1745238646028,-500.0,0.00025415,2]
[358534073,1745238646038,-500.0,0.00025415,2]
[358534074,1745238646048,-500.0,0.00025415,2]
[358534075,1745238646058,-225.22890157,0.00025415,2]
[358534076,1745238646068,-500.0,0.00025415,2]
[358534079,1745238646193,-500.0,0.00025415,2]
[358534080,1745238646206,-635.07307724,0.00025415,2]
[358534081,1745238646216,-500.0,0.00025415,2]
[358534082,1745238646225,-500.0,0.00025415,2]
[358534083,1745238646235,-500.0,0.00025415,2]
[358534084,1745238646245,-500.0,0.00025415,2]
[358534085,1745238646254,-500.0,0.00025415,2]
[358534086,1745238646264,-500.0,0.00025415,2]
[358534087,1745238646273,-505.01647735,0.00025415,2]
[358534088,1745238646282,-500.0,0.00025415,2]
[358534089,1745238646292,-500.0,0.00025415,2]
[358534090,1745238646301,-500.0,0.00025415,2]
[358534091,1745238646311,-500.0,0.00025415,2]
[358534092,1745238646320,-500.0,0.00025415,2]
[358534093,1745238646330,-500.0,0.00025415,2]
[358534094,1745238646339,-500.0,0.00025415,2]
[358534095,1745238646348,-500.0,0.00025415,2]
[358534096,1745238646358,-501.56488136,0.00025415,2]
[358534097,1745238646367,-500.0,0.00025415,2]
[358534098,1745238646377,-500.0,0.00025415,2]
[358534099,1745238646386,-500.0,0.00025415,2]
[358534100,1745238646395,-500.0,0.00025415,2]
[358534101,1745238646404,-500.0,0.00025415,2]
[358534102,1745238646414,-500.0,0.00025415,2]
[358534103,1745238646424,-500.0,0.00025415,2]
[358534104,1745238646433,-500.0,0.00025415,2]
[358534105,1745238646442,-500.0,0.00025415,2]
[358534106,1745238646452,-442.38670019,0.00025415,2]
[358534107,1745238646461,-500.0,0.00025415,2]
[358534108,1745238646470,-500.0,0.00025415,2]
[358534109,1745238646481,-500.0,0.00025415,2]
[358534110,1745238646491,-500.0,0.00025415,2]
[358534111,1745238646501,-500.0,0.00025415,2]
[358534112,1745238646511,-500.0,0.00025415,2]
[358534113,1745238646520,-500.0,0.00025415,2]
[358534114,1745238646541,-500.0,0.00025415,2]
[358534115,1745238646556,-500.0,0.00025415,2]
[358534116,1745238646566,-500.0,0.00025415,2]
[358534117,1745238646576,-500.0,0.00025415,2]
[358534118,1745238646587,-503.78161768,0.00025415,2]
[358534119,1745238646598,-500.0,0.00025415,2]
[358534120,1745238646608,-500.0,0.00025415,2]
[358534121,1745238646617,-500.0,0.00025415,2]
[358534122,1745238646628,-270.90232192,0.00025415,2]
[358534123,1745238646638,-500.0,0.00025415,2]
[358534124,1745238646648,-500.0,0.00025415,2]
[358534125,1745238646658,-500.0,0.00025415,2]
[358534126,1745238646667,-500.0,0.00025415,2]
[358534127,1745238646677,-500.0,0.00025415,2]
[358534128,1745238646687,-500.0,0.00025415,2]
[358534129,1745238646696,-500.0,0.00025415,2]
[358534130,1745238646707,-500.0,0.00025415,2]
[358534131,1745238646717,-500.0,0.00025415,2]
[358534132,1745238646727,-387.75816027,0.00025415,2]
[358534133,1745238646737,-504.35308055,0.00025415,2]
[358534134,1745238646747,-289.09399675,0.00025415,2]
[358534135,1745238646757,-500.0,0.00025415,2]
[358534136,1745238646768,-503.88281696,0.00025415,2]
[358534137,1745238646778,-500.0,0.00025415,2]
[358534138,1745238646788,-500.0,0.00025415,2]
[358534139,1745238646797,-500.0,0.00025415,2]
[358534140,1745238646808,-500.0,0.00025415,2]
[358534141,1745238646817,-513.23936796,0.00025415,2]
[358534142,1745238646827,-500.0,0.00025415,2]
[358534143,1745238646837,-500.0,0.00025415,2]
[358534144,1745238646847,-500.0,0.00025415,2]
[358534145,1745238646856,-500.0,0.00025415,2]
[358534146,1745238646866,-500.0,0.00025415,2]
[358534147,1745238646876,-500.0,0.00025415,2]
[358534148,1745238646886,-500.0,0.00025415,2]
[358534149,1745238646896,-500.0,0.00025415,2]
[358534150,1745238646907,-500.0,0.00025415,2]
[358534151,1745238646917,-500.0,0.00025415,2]
[358534152,1745238646927,-500.0,0.00025415,2]
[358534153,1745238646937,-500.0,0.00025415,2]
[358534154,1745238646947,-500.0,0.00025415,2]
[358534155,1745238646956,-500.0,0.00025415,2]
[358534156,1745238646966,-172.17020372,0.00025415,2]
[358534157,1745238646976,-500.0,0.00025415,2]
[358534158,1745238646986,-595.24982096,0.00025415,2]
[358534159,1745238646995,-218.16633101,0.00025415,2]
[358534160,1745238647010,-281.83366899,0.00025415,2]
[358534161,1745238647020,-500.0,0.00025415,2]
[358534162,1745238647030,-500.0,0.00025415,2]
[358534163,1745238647040,-500.0,0.00025415,2]
[358534164,1745238647049,-500.0,0.00025415,2]
[358534165,1745238647059,-579.49154693,0.00025415,2]
[358534166,1745238647069,-500.0,0.00025415,2]
[358534167,1745238647078,-500.0,0.00025415,2]
[358534168,1745238647088,-500.0,0.00025415,2]
[358534169,1745238647097,-500.0,0.00025415,2]
[358534170,1745238647107,-500.0,0.00025415,2]
[358534171,1745238647117,-500.0,0.00025415,2]
[358534172,1745238647128,-500.0,0.00025415,2]
[358534173,1745238647138,-500.0,0.00025415,2]
[358534174,1745238647147,-500.0,0.00025415,2]
[358534175,1745238647157,-500.0,0.00025415,2]
[358534176,1745238647167,-500.0,0.00025415,2]
[358534177,1745238647176,-500.0,0.00025415,2]
[358534178,1745238647186,-500.0,0.00025415,2]
[358534179,1745238647196,-500.0,0.00025415,2]
[358534180,1745238647206,-370.33213209,0.00025415,2]
[358534181,1745238647215,-500.0,0.00025415,2]
[358534182,1745238647225,-500.0,0.00025415,2]
[358534183,1745238647234,-500.0,0.00025415,2]
[358534184,1745238647244,-500.0,0.00025415,2]
[358534185,1745238647254,-500.0,0.00025415,2]
[358534186,1745238647263,-500.0,0.00025415,2]
[358534187,1745238647273,-500.0,0.00025415,2]
[358534188,1745238647283,-500.0,0.00025415,2]
[358534189,1745238647292,-500.0,0.00025415,2]
[358534190,1745238647302,-500.0,0.00025415,2]
[358534191,1745238647311,-500.0,0.00025415,2]
[358534192,1745238647321,-629.463808,0.00025415,2]
[358534193,1745238647330,-500.0,0.00025415,2]
[358534194,1745238647339,-500.0,0.00025415,2]
[358534195,1745238647349,-500.0,0.00025415,2]
[358534196,1745238647358,-500.0,0.00025415,2]
[358534197,1745238647368,-500.0,0.00025415,2]
[358534198,1745238647377,-500.0,0.00025415,2]
[358534199,1745238647387,-500.0,0.00025415,2]
[358534200,1745238647396,-500.0,0.00025415,2]
[358534201,1745238647405,-500.76843567,0.00025415,2]
[358534202,1745238647415,-500.0,0.00025415,2]
[358534203,1745238647424,-500.0,0.00025415,2]
[358534204,1745238647434,-500.0,0.00025415,2]
[358534205,1745238647443,-500.0,0.00025415,2]
[358534206,1745238647453,-500.0,0.00025415,2]
[358534207,1745238647462,-500.0,0.00025415,2]
[358534208,1745238647472,-500.0,0.00025415,2]
[358534209,1745238647482,-500.0,0.00025415,2]
[358534210,1745238647491,-500.0,0.00025415,2]
[358534211,1745238647501,-500.0,0.00025415,2]
[358534212,1745238647510,-500.0,0.00025415,2]
[358534213,1745238647520,-500.0,0.00025415,2]
[358534214,1745238647529,-500.0,0.00025415,2]
[358534215,1745238647538,-500.0,0.00025415,2]
[358534217,1745238647550,-500.0,0.00025415,2]
[358534219,1745238647562,-500.0,0.00025415,2]
[358534221,1745238647571,-500.0,0.00025415,2]
[358534224,1745238647581,-500.0,0.00025415,2]
[358534226,1745238647590,-279.67433532,0.00025415,2]
[358534227,1745238647601,-500.0,0.00025415,2]
[358534228,1745238647616,-500.0,0.00025415,2]
[358534229,1745238647627,-500.0,0.00025415,2]
[358534230,1745238647637,-500.0,0.00025415,2]
[358534231,1745238647647,-503.88305943,0.00025415,2]
[358534232,1745238647657,-500.0,0.00025415,2]
[358534233,1745238647667,-500.0,0.00025415,2]
[358534234,1745238647676,-500.0,0.00025415,2]
[358534235,1745238647686,-500.0,0.00025415,2]
[358534236,1745238647696,-500.0,0.00025415,2]
[358534237,1745238647705,-500.0,0.00025415,2]
[358534238,1745238647715,-500.0,0.00025415,2]
[358534239,1745238647725,-500.0,0.00025415,2]
[358534240,1745238647734,-500.0,0.00025415,2]
[358534241,1745238647745,-500.0,0.00025415,2]
[358534242,1745238647754,-500.0,0.00025415,2]
[358534243,1745238647763,-500.0,0.00025415,2]
[358534244,1745238647773,-500.0,0.00025415,2]
[358534245,1745238647782,-500.0,0.00025415,2]
[358534246,1745238647792,-500.0,0.00025415,2]
[358534247,1745238647801,-500.0,0.00025415,2]
[358534248,1745238647811,-500.0,0.00025415,2]
[358534249,1745238647820,-502.08852846,0.00025415,2]
[358534250,1745238647830,-500.0,0.00025415,2]
[358534251,1745238647840,-500.0,0.00025415,2]
[358534252,1745238647850,-500.0,0.00025415,2]
[358534253,1745238647859,-500.0,0.00025415,2]
[358534254,1745238647869,-500.0,0.00025415,2]
[358534255,1745238647879,-500.0,0.00025415,2]
[358534256,1745238647889,-500.0,0.00025415,2]
[358534257,1745238647899,-500.0,0.00025415,2]
[358534258,1745238647908,-500.0,0.00025415,2]
[358534259,1745238647917,-500.0,0.00025415,2]
[358534260,1745238647926,-500.0,0.00025415,2]
[358534261,1745238647936,-500.0,0.00025415,2]
[358534262,1745238647945,-500.0,0.00025415,2]
[358534263,1745238647956,-500.0,0.00025415,2]
[358534264,1745238647965,-500.0,0.00025415,2]
[358534265,1745238647976,-500.0,0.00025415,2]
[358534266,1745238647986,-500.0,0.00025415,2]
[358534267,1745238647996,-500.0,0.00025415,2]
[358534268,1745238648006,-500.0,0.00025415,2]
[358534269,1745238648016,-500.0,0.00025415,2]
[358534270,1745238648026,-500.0,0.00025415,2]
[358534271,1745238648036,-500.0,0.00025415,2]
[358534272,1745238648045,-500.0,0.00025415,2]
[358534273,1745238648055,-420.75450666,0.00025415,2]
[358534274,1745238648065,-500.0,0.00025415,2]
[358534275,1745238648077,-500.0,0.00025415,2]
[358534276,1745238648087,-500.0,0.00025415,2]
[358534277,1745238648096,-500.9910037,0.00025415,2]
[358534278,1745238648107,-500.0,0.00025415,2]
[358534279,1745238648116,-500.0,0.00025415,2]
[358534280,1745238648126,-500.0,0.00025415,2]
[358534281,1745238648136,-638.43838026,0.00025415,2]
[358534282,1745238648146,-500.0,0.00025415,2]
[358534283,1745238648156,-500.0,0.00025415,2]
[358534284,1745238648166,-500.0,0.00025415,2]
[358534285,1745238648177,-500.0,0.00025415,2]
[358534286,1745238648187,-500.0,0.00025415,2]
[358534287,1745238648196,-500.0,0.00025415,2]
[358534288,1745238648206,-639.49042075,0.00025415,2]
[358534289,1745238648217,-500.0,0.00025415,2]
[358534290,1745238648226,-500.0,0.00025415,2]
[358534291,1745238648237,-500.0,0.00025415,2]
[358534292,1745238648247,-500.0,0.00025415,2]
[358534293,1745238648257,-507.95008675,0.00025415,2]
[358534294,1745238648266,-500.0,0.00025415,2]
[358534295,1745238648275,-500.0,0.00025415,2]
[358534296,1745238648285,-500.0,0.00025415,2]
[358534297,1745238648294,-591.82708747,0.00025415,2]
[358534298,1745238648304,-500.0,0.00025415,2]
[358534299,1745238648313,-575.4553595,0.00025415,2]
[358534300,1745238648323,-500.0,0.00025415,2]
[358534301,1745238648333,-500.0,0.00025415,2]
[358534302,1745238648342,-500.0,0.00025415,2]
[358534303,1745238648352,-500.0,0.00025415,2]
[358534304,1745238648361,-500.0,0.00025415,2]
[358534305,1745238648370,-500.0,0.00025415,2]
[358534306,1745238648380,-500.0,0.00025415,2]
[358534307,1745238648389,-500.0,0.00025415,2]
[358534308,1745238648398,-500.0,0.00025415,2]
[358534309,1745238648408,-1000.0,0.00025415,2]
[358534310,1745238648418,-500.0,0.00025415,2]
[358534311,1745238648427,-500.0,0.00025415,2]
[358534312,1745238648437,-500.0,0.00025415,2]
[358534313,1745238648446,-500.0,0.00025415,2]
[358534314,1745238648456,-411.25032271,0.00025415,2]
[358534315,1745238648465,-500.0,0.00025415,2]
[358534316,1745238648476,-500.0,0.00025415,2]
[358534317,1745238648486,-500.0,0.00025415,2]
[358534318,1745238648496,-500.0,0.00025415,2]
[358534319,1745238648506,-500.0,0.00025415,2]
[358534320,1745238648516,-500.0,0.00025415,2]
[358534321,1745238648525,-500.0,0.00025415,2]
[358534322,1745238648535,-500.0,0.00025415,2]
[358534323,1745238648545,-500.0,0.00025415,2]
[358534324,1745238648556,-500.0,0.00025415,2]
[358534325,1745238648565,-500.0,0.00025415,2]
[358534326,1745238648575,-279.88123566,0.00025415,2]
[358534327,1745238648584,-500.0,0.00025415,2]
[358534328,1745238648595,-500.0,0.00025415,2]
[358534329,1745238648604,-184.3107984,0.00025415,2]
[358534330,1745238648613,-500.0,0.00025415,2]
[358534331,1745238648623,-500.0,0.00025415,2]
[358534332,1745238648633,-500.0,0.00025415,2]
[358534333,1745238648643,-500.0,0.00025415,2]
[358534334,1745238648652,-500.0,0.00025415,2]
[358534335,1745238648663,-500.0,0.00025415,2]
[358534336,1745238648673,-500.0,0.00025415,2]
[358534337,1745238648682,-500.0,0.00025415,2]
[358534338,1745238648692,-500.0,0.00025415,2]
[358534339,1745238648702,-500.0,0.00025415,2]
[358534340,1745238648712,-500.0,0.00025415,2]
[358534341,1745238648722,-500.0,0.00025415,2]
[358534342,1745238648732,-500.0,0.00025415,2]
[358534343,1745238648742,-500.0,0.00025415,2]
[358534344,1745238648752,-500.0,0.00025415,2]
[358534345,1745238648761,-500.0,0.00025415,2]
[358534346,1745238648771,-500.0,0.00025416,2]
[358534347,1745238648894,-500.0,0.00025416,2]
[358534348,1745238648904,-500.0,0.00025416,2]
[358534349,1745238648914,-500.0,0.00025416,2]
[358534350,1745238648924,-500.0,0.00025416,2]
[358534351,1745238648933,-761.77050338,0.00025417,6]
[358534352,1745238648952,-833.33,0.00025472,2]
[358534353,1745238648963,-500.0,0.00025488,2]
[358534354,1745238648973,-678.87,0.00025488,2]
[358534355,1745238648984,-2062.41,0.00025488,2]
[358534356,1745238648995,-517.67,0.00025488,2]
[358534357,1745238649005,-500.0,0.00025489,2]
[358534358,1745238649015,-500.0,0.00025489,2]
[358534359,1745238649026,-266.29,0.00025489,2]
[358534360,1745238649037,-500.0,0.00025489,2]
[358534361,1745238649048,-1413.15,0.0002549,2]
[358534362,1745238649058,-626.68,0.0002549,2]
[358534363,1745238649068,-563.24,0.00025491,2]
[358534364,1745238649079,-30019.08774259,0.000255,2]
[358534365,1745238649090,-833.33,0.00025688,2]
[358534366,1745238649101,-833.33,0.00025688,2]
[358534367,1745238649111,-833.33,0.00025688,2]
[358534368,1745238649122,-833.33,0.00025688,2]
[358534369,1745238649132,-833.33,0.00025688,2]
[358534370,1745238649142,-833.41,0.00025688,2]
[358534371,1745238649152,-366.28,0.00025689,2]
[358534372,1745238649162,-500.0,0.00025689,2]
[358534373,1745238649173,-500.0,0.00025689,2]
[358534374,1745238649183,-500.0,0.00025689,2]
[358534375,1745238649195,-500.0,0.00025689,2]
[358534376,1745238649205,-561.54,0.00025689,2]
[358534377,1745238649215,-500.0,0.00025689,2]
[358534378,1745238649224,-210.54495266,0.00025689,2]
[358534379,1745238649235,-500.0,0.00025689,2]
[358534380,1745238649245,-330.44492559,0.00025689,2]
[358534381,1745238649255,-500.0,0.00025689,2]
[358534382,1745238649265,-500.0,0.00025689,2]
[358534383,1745238649275,-525.6,0.00025689,2]
[358534384,1745238649284,-500.0,0.00025689,2]
[358534385,1745238649295,-500.0,0.00025689,2]
[358534386,1745238649305,-639.66371813,0.00025689,2]
[358534387,1745238649314,-500.0,0.00025689,2]
[358534388,1745238649324,-500.0,0.00025689,2]
[358534389,1745238649334,-608.32,0.00025689,2]
[358534390,1745238649344,-500.0,0.00025689,2]
[358534391,1745238649354,-500.0,0.00025689,2]
[358534392,1745238649364,-500.0,0.00025689,2]
[358534393,1745238649373,-500.0,0.00025689,2]
[358534394,1745238649383,-500.0,0.00025689,2]
[358534395,1745238649393,-500.0,0.00025689,2]
[358534396,1745238649402,-500.0,0.00025689,2]
[358534397,1745238649412,-500.0,0.00025689,2]
[358534398,1745238649422,-500.0,0.00025689,2]
[358534399,1745238649432,-500.0,0.00025689,2]
[358534400,1745238649441,-500.0,0.00025689,2]
[358534401,1745238649450,-500.0,0.00025689,2]
[358534402,1745238649460,-500.0,0.00025689,2]
[358534403,1745238649470,-500.0,0.00025689,2]
[358534404,1745238649480,-500.0,0.00025689,2]
[358534405,1745238649489,-500.0,0.00025689,2]
[358534406,1745238649499,-500.0,0.00025689,2]
[358534407,1745238649509,-502.24103471,0.00025689,2]
[358534408,1745238649518,-352.58025207,0.00025689,2]
[358534409,1745238649528,-500.0,0.00025689,2]
[358534410,1745238649538,-500.0,0.00025689,2]
[358534411,1745238649551,-500.0,0.00025689,2]
[358534412,1745238649561,-500.0,0.00025689,2]